Cogmind - Beta 10.2 @@@ ROGUE MODE // 2021.01.27 @ 12:59:57 Player: blelm Result: Destroyed by D-53 Grenadier with Mini Grenade Launcher Performance ------------- Evolutions (0) 0 Regions Visited (2) 400 Robots Destroyed (27) 135 Value Destroyed (590) 590 Prototype IDs (0) 0 Alien Tech Used (0) 0 Bonus (0) 0 TOTAL SCORE: 1125 Bonus ------- None Cogmind --------- Core Integrity 0/250 Matter 240/300 Energy 159/160 System Corruption 0% Temperature Cool (0) Movement Rolling (120) Ox2 Location -10/Mines Parts ------- > --- POWER (1) -------- Light Nuclear Core > --- PROPULSION (2) --- Compact Wheel > --- UTILITY (2) ------ Large Storage Unit Large Storage Unit > --- WEAPON (2) ------- Mini Grenade Launcher > --- INVENTORY (16) --- Improved Treads Improved Treads Improved Treads Improved Treads Cooling System Medium Storage Unit EM Pulse Gun Medium Laser Medium Laser Rocket Launcher Mini Grenade Launcher Mini Grenade Launcher Mini Grenade Launcher Mining Laser Peak State ------------ > --- POWER ------------ Light Nuclear Core > --- PROPULSION ------- Light Treads Improved Treads > --- UTILITY ---------- Large Storage Unit Large Storage Unit > --- WEAPON ----------- Medium Laser Mini Grenade Launcher > --- INVENTORY -------- Improved Treads Improved Treads Improved Treads Compact Wheel Cooling System Medium Storage Unit EM Pulse Gun Medium Laser Medium Laser Rocket Launcher Mini Grenade Launcher Mini Grenade Launcher Mini Grenade Launcher Mining Laser [Rating: 13] Favorites ----------- Power Ion Engine Engine Ion Engine Power Core Light Nuclear Core Propulsion Light Treads Treads Light Treads Leg Aluminum Leg Wheel Compact Wheel Utility Large Storage Unit Storage Large Storage Unit Weapon EM Pulse Gun Energy Gun EM Pulse Gun Launcher Mini Grenade Launcher Build | -11 -10 -10 ------- Run | Scr Mat Min Slots Evolved . | . . . Power . | . . . Propulsion . | . . . Utility . | . . . Weapon . | . . . Parts Attached 17 | 3 12 2 Power 3 | . 2 1 Engine 2 | . 2 . Core 1 | . . 1 Reactor . | . . . Propulsion 6 | 2 3 1 Treads 4 | 2 2 . Leg . | . . . Wheel 2 | . 1 1 Hover . | . . . Flight . | . . . Utility 3 | . 3 . Device . | . . . Storage 3 | . 3 . Processor . | . . . Hackware . | . . . Protection . | . . . Artifact . | . . . Weapon 5 | 1 4 . Energy Gun 4 | 1 3 . Energy Cannon . | . . . Ballistic Gun . | . . . Ballistic Cannon . | . . . Launcher 1 | . 1 . Special Weapon . | . . . Impact Weapon . | . . . Slashing Weapon . | . . . Piercing Weapon . | . . . Special Melee Weapon . | . . . Unidentified Prototypes . | . . . Parts Lost 6 | . 3 3 Power 2 | . 1 1 Propulsion 2 | . 1 1 Utility . | . . . Weapon 2 | . 1 1 Highest Loss Streak 3 | . 2 3 Average Slot Usage (%) 92 | . 90 97 Engine 13 | . 14 11 Treads 26 | . 26 27 Wheel 1 | . 1 . Storage 21 | . 19 28 Energy Gun 23 | . 28 12 Launcher 3 | . . 14 Naked Turns . | . . . Heaviest Build 41 | 13 41 40 Greatest Support 43 | 40 43 43 Greatest Overweight (x) 2 | . 2 2 Average Overweight (x) . | . . . Largest Inventory Capacity 16 | 6 16 16 Average Capacity 10 | 6 8 16 Most Carried 15 | 6 14 15 Average Carried 8 | 6 6 14 Final Capacity 16 | 6 16 16 Final Carried 14 | 6 14 14 Class Distribution -------------------- 100% | Mutant Dominant Class ---------------- Mutant | -10/Materials Mutant | -10/Mines Resources | -11 -10 -10 ----------- Run | Scr Mat Min Matter Collected 324 | 213 89 22 Remotely . | . . . Salvage Created 911 | 100 784 27 Parts 57 | 1 44 12 Haulers Intercepted . | . . . Recyclers Shooed 3 | . 3 . Parts Field Recycled . | . . . Retrieved Matter . | . . . Parts Self-Destructed . | . . . Prevented . | . . . Kills | -11 -10 -10 ------- Run | Scr Mat Min Combat Hostiles Destroyed 21 | . 16 5 Guns 13 | . 13 . AOE 8 | . 3 5 Classes Destroyed 5 | 1 4 . Worker 3 | . 2 1 Recycler 2 | 1 1 . Operator 1 | . 1 . Swarmer 7 | . 2 5 Grunt 14 | . 14 . Best Kill Streak 10 | 1 10 6 Combat Bots Only 7 | . 7 5 Max Kills in Single Turn 3 | 1 3 2 Gunslinging . | . . . Exploded 2 | . 2 2 Melee . | . . . Uniques/NPCs Destroyed . | . . . Combat | -11 -10 -10 -------- Run | Scr Mat Min Damage Taken 1029 | . 612 417 Core 251 | . 129 122 Absorbed by Shields . | . . . Core Remaining (%) 100 | 100 . . Volleys Fired 54 | 5 43 6 Largest 2 | 2 2 1 Hottest 90 | 90 90 30 Shots Fired 102 | 10 86 6 Gun 96 | 10 86 . Cannon . | . . . Launcher 6 | . . 6 Special . | . . . Kinetic . | . . . Thermal 25 | 5 20 . Explosive 6 | . . 6 Electromagnetic 71 | 5 66 . Robot Hit Streak 10 | 4 10 4 Robot Miss Streak 2 | 1 2 1 Penetration Max . | . . . Secondary Targets 4 | . 4 . Max Gunslinging Chain 1 | . 1 . Shots Hit Robots 73 | 8 61 4 Core Hits 43 | 3 32 8 Critical Hits . | . . . Critical Kills . | . . . Critical Parts Destroyed . | . . . Melee Attacks . | . . . Impact . | . . . Slashing . | . . . Piercing . | . . . Sneak Attacks . | . . . Combat Hostiles . | . . . Follow-up Attacks . | . . . Damage Inflicted 1579 | 90 1061 428 Guns 857 | 61 796 . Cannons . | . . . Explosions 695 | 26 245 424 Melee . | . . . Ramming 27 | 3 20 4 Kinetic . | . . . Thermal 435 | 50 385 . Explosive 424 | . . 424 Electromagnetic 693 | 37 656 . Impact . | . . . Slashing . | . . . Piercing . | . . . Highest Corruption . | . . . Average Corruption . | . . . Corruption Purged . | . . . Overload Shots . | . . . Overflow Damage 36 | . . 36 Projectiles . | . . . Explosions 36 | . . 36 Melee . | . . . Knockbacks . | . . . Impact . | . . . Kinetic . | . . . Secondary . | . . . Self-Inflicted Damage 196 | . 108 88 Shots 6 | . 3 3 Rammed 13 | 6 6 1 Targets Rammed 14 | 6 7 1 Kicked . | . . . Crushed 1 | . 1 . Highest Temperature 304 | 150 304 . Average Temperature 113 | 78 117 . Received Heat Transfer 249 | . 249 . Siege Activations . | . . . Robots Corrupted . | . . . Combat Hostiles . | . . . Parts Fried . | . . . Impact Corruptions . | . . . Robots Melted . | . . . Combat Hostiles . | . . . Parts Melted 1 | . 1 . Heat Transferred 881 | 124 757 . Parts Sabotaged . | . . . Parts Stolen . | . . . Parts Stripped . | . . . Power Chain Reactions 5 | 1 4 . Missiles Intercepted . | . . . Alert | -11 -10 -10 ------- Run | Scr Mat Min Peak Influence 378 | 5 378 208 Initial 98 | . 3 98 Average 155 | 1 184 114 Maximum Alert Level 1 | . 1 1 Low Security (%) 76 | 100 67 94 Level 1 23 | . 32 5 Level 2 . | . . . Level 3 . | . . . Level 4 . | . . . Level 5 . | . . . High Security . | . . . Max Security . | . . . Squads Dispatched 4 | . 4 . Investigation 2 | . 2 . Extermination . | . . . Reinforcement 2 | . 2 . Assault . | . . . Garrison . | . . . Intercept . | . . . Construction Impeded . | . . . Haulers Reinforced . | . . . Stealth | -11 -10 -10 --------- Run | Scr Mat Min Distress Signals 3 | . 3 . Communications Jammed . | . . . Distress Signals . | . . . Times Spotted 47 | . 21 26 Peak Tracking Total 18 | . 4 18 Tactical Retreats 3 | . 2 1 Traps | -11 -10 -10 ------- Run | Scr Mat Min Traps Triggered 2 | . 2 . Indirectly . | . . . Trap Hack Attempts . | . . . Triggered . | . . . Disarmed . | . . . Reprogrammed . | . . . Reused . | . . . Traps Extracted . | . . . Installed . | . . . Triggered . | . . . Machines | -11 -10 -10 ---------- Run | Scr Mat Min Machines Disabled . | . . . Max in Single Turn . | . . . Machines Sabotaged . | . . . Garrisons Compromised . | . . . Overloaded Fab Kills . | . . . Fab Network Shutdowns . | . . . Hacking | -11 -10 -10 --------- Run | Scr Mat Min Machines Accessed . | . . . Terminals . | . . . Fabricators . | . . . Repair Stations . | . . . Recycling Units . | . . . Scanalyzers . | . . . Garrison Access . | . . . Total Hacks . | . . . Successful . | . . . Failed . | . . . Catastrophic . | . . . Database Lockouts . | . . . Manual . | . . . Terminals . | . . . Fabricators . | . . . Repair Stations . | . . . Recycling Units . | . . . Scanalyzers . | . . . Garrison Access . | . . . Terminal Hacks . | . . . Fabricator Hacks . | . . . Repair Station Hacks . | . . . Recycling Unit Hacks . | . . . Scanalyzer . | . . . Garrison Access Hacks . | . . . Unauthorized Hacks . | . . . Terminals . | . . . Fabricators . | . . . Repair Stations . | . . . Recycling Units . | . . . Scanalyzers . | . . . Garrison Access . | . . . Data Cores Recovered . | . . . Used . | . . . Hacking Detections . | . . . Full Trace Events . | . . . Feedback Events . | . . . Feedback Blocked . | . . . Robot Schematics Acquired . | . . . Robots Built . | . . . Matter . | . . . Time . | . . . Total Robot Build Rating . | . . . Part Schematics Acquired . | . . . Parts Built . | . . . Matter . | . . . Time . | . . . Total Part Build Rating . | . . . Parts Repaired . | . . . Time . | . . . Parts Recycled . | . . . Recycled Matter . | . . . Retrieved Matter . | . . . Retrieved Components . | . . . Parts Scanalyzed . | . . . Part Schematics Acquired . | . . . Parts Damaged . | . . . Bothacking | -11 -10 -10 ------------ Run | Scr Mat Min Used RIF Installer . | . . . Robots Hacked . | . . . Non-combat . | . . . Combat . | . . . Robot Hacks Applied . | . . . Relay Couplers Released . | . . . Robots Rewired . | . . . Allies Hacked . | . . . Hacks Repelled . | . . . Allies | -11 -10 -10 -------- Run | Scr Mat Min Total Allies . | . . . Largest Group . | . . . Highest-Rated Group . | . . . Highest-Rated Ally . | . . . Total Orders . | . . . Ally Attacks . | . . . Total Damage . | . . . Kills . | . . . Allies Corrupted . | . . . Allies Melted . | . . . Intel | -11 -10 -10 ------- Run | Scr Mat Min Robot Analysis Total . | . . . Derelict Logs Recovered . | . . . Drone Launches . | . . . Drone Recoveries . | . . . Exploration | -11 -10 -10 ------------- Run | Scr Mat Min Turns Passed 1061 | 62 724 275 Spaces Moved 520 | 21 342 157 Core . | . . . Treads 480 | 21 304 155 Legs . | . . . Wheels 40 | . 38 2 Hover . | . . . Flight . | . . . Fastest Speed 120 | 160 120 120 Average Speed 158 | 160 157 159 Slowest Speed 200 | 160 200 160 Overloaded Moves . | . . . Propulsion Burnouts . | . . . Robots Hopped . | . . . Cave-ins Triggered . | . . . Exploration Rate (%) 36 | 3 55 52 Regions Visited 2 Branch Regions 1 Pre-discovered Areas . | . . . Known Exits Taken . | . . . Unknown Exits Taken 2 | 1 1 . Scrap Searched 1 | . . 1 Spaces Dug . | . . . Terrain Destroyed 63 | . 19 44 Melee . | . . . Projectile . | . . . AOE 63 | . 19 44 Terrain Rammed . | . . . Walls Destroyed . | . . . Machines Disabled . | . . . Actions | -11 -10 -10 --------- Run | Scr Mat Min Total 644 | 34 435 175 Wait 21 | . 13 8 Move 518 | 20 341 157 Hop . | . . . Pick Up 15 | . 14 1 Fast Attach 4 | . 4 . Attach 4 | . 3 1 Detach . | . . . Swap 9 | 3 5 1 Drop 5 | . 5 . Fire 54 | 5 43 6 Melee . | . . . Ram . | . . . Kick . | . . . Crush 14 | 6 7 1 Escape Stasis . | . . . Rewire . | . . . Trap . | . . . Miscellaneous . | . . . Route ------- -11/Scrapyard -10/Materials (discovered 3 exits: [*Mat x2] / [*Min]) -10/Mines (discovered 1 exit: [*Mat]) History --------- Turn | Location | Event 4 | -11/Scrapyard | Discovered new exit (range 3) 63 | -11/Scrapyard | Entered Materials 308 | -10/Materials | Build established: Mutant 367 | -10/Materials | Destroyed 7 combat bots 560 | -10/Materials | Discovered new exit (range 3) 655 | -10/Materials | Discovered new exit (range 10) 694 | -10/Materials | Core integrity fell below 50% 735 | -10/Materials | Discovered new exit (range 15) 787 | -10/Materials | Entered Mines 805 | -10/Mines | Received a Rocket Launcher from a helpful Derelict 995 | -10/Mines | Met a Derelict bent on vengeance 998 | -10/Mines | Discovered new exit (range 8) 1049 | -10/Mines | Assembled infested the area 1054 | -10/Mines | Assisted by a Guerilla fighting off Assembled 1060 | -10/Mines | Core integrity fell below 20% 1062 | -10/Mines | Destroyed by D-53 Grenadier with Mini Grenade Launcher Last Messages --------------- 01054_ U-05 Engineer builds a Wall. 01055_ U-05 Engineer lays Concrete. 01056_ as-92861 sneak attacks. 01056_ U-05 Engineer system corrupted by crushing effect. 01057_ U-05 Engineer system terminally corrupted. 01058_ C-30 ARC bursts open, deploying its payload. 01058_ D-53 Grenadier unfolds itself. 01059_ Lgt. Treads destroyed. 01059_ as-25995 destroyed. 01059_ as-10390 destroyed. 01060_ HV Slug penetrates as-66733. 01060_ as-66733 destroyed. 01060_ HV Slug penetrates Wall. 01060_ as-42230 destroyed. 01060_ as-00687 destroyed. 01060_ as-59551 destroyed. 01060_ as-57430 destroyed. 01060_ as-92861 destroyed. 01060_ as-01622 destroyed. 01062_ as-68396 destroyed. Map ----- +----------------------------------------------------+ | | | | | | | | | | | | | | | | | | | | | | | | | | | ?????????????????????????????????????????????????? | | ?????????????????????????????????###?????????????? | | ???????????????????????####?????# ##????????????? | | ??????????????????????## ##???# #????????????? | | ??????????????????????# ##?# #????????????? | | ??????????????????????# ## #?????????????? | | ??????????????????????# #??????????????? | | ?????????????????###?## #???????????????? | | ???????????????### ### ;????????????????? | | ??????????????## # ####### ????????? | | ??????????????# < # aaa ????????? | | ?????????????## = [ a aaa ?????????? | | ???????????### ![ @ #????????????????? | | ???????????# *u ##????????????????? | | ???######### k# h #????????????????? | | ??## ## ########???????????? | | ### ### #???????? | | ## ####### ##?## dd######???????????? | | ##?????# ###???# ### # %#????????????????? | | ##?????# ###?????##???## #????????????????? | | ##?????# ##??????????????? #????????????????? | | # #????? #???????????????? #????????????????? | | # #????### #?????????????????#????????????????? | | # #??????### #??????????????????????????????????? | | # #????????# #??????????????????????????????????? | | # #????????# ??????????????????????????????????? | | # #????????# ??????????????????????????????????? | | # #????????### ??????????????????????????????????? | | ? #??????????? ??????????????????????????????????? | | # ## ###?????? ?????????????????????????????????? | | #?????? ??????????????????????????????????? | | ###### #??? ????????????????????????????????????? | | #??????### ????????????????????????????????????? | | #?????!#% ?????????????????????????????????????? | | ####?#=*%=#??????????????????????????????????????? | | #?=%[%????????????????????????????????????????? | | ##[[#?????????????????????????????????????????? | +----------------------------------------------------+ Best States ------------- Heat Dissipation 25 Energy Generation 14 Energy Capacity 250 Matter Stores 300 Matter Capacity 300 Sight Range 16 Terrain Scan Density 10 Evasion (%) 40 Recoil Reduction 2 Item Schematics ----------------- None Robot Schematics ------------------ None Fabricated ------------ Nothing Alien Tech Used ----------------- None Achievements -------------- None Challenges ------------ None Game ------ Seed LightningDeepWeb Manual? 0 Play Time 00:06:52 Cumulative 320.0 hours Start 2021.01.27 @ 12:29:00 End 2021.01.27 @ 12:59:57 Sessions 1 Manual Loads 0 Difficulty Rogue Special Mode None Game No. 171 Rogue 171 Adventurer 0 Explorer 0 Win Type - Total 9 Types 1/5/1/0/0/0/2/0/0 Lore% 85 Gallery% 86 Achievement% 68 Wizard Run 0 Options --------- ASCII 1 Keyboard 1 Movement Vi Keybinds 0 Fullscreen 1 Font 16/Terminus Map View 75x55 Tactical HUD 1 Map Filters NONE Filters NONE Steam 1 RUN: 168482de-55c3-4c38-8fa1-bb58ec83341e